bitfinex-derivatives/quotes_SOLF0:USTF0_20260116
["timestamp","ask_amount","ask_price","bid_price","bid_amount"]
[1768594093037,9.71731039,143.69,143.62,13.79427065]
[1768594094039,9.71731039,143.69,143.63,6.2688]
[1768594094438,9.71731039,143.69,143.64,6.2684]
[1768594094744,7.98091499,143.71,143.64,7.52517065]
[1768594095140,7.98091499,143.73,143.65,7.52517065]
[1768594095543,7.98091499,143.73,143.65,13.79287065]
[1768594095544,1.7363954,143.72,143.65,13.79287065]
[1768594095845,9.71731039,143.72,143.65,13.79287065]
[1768594096045,9.71731039,143.72,143.64,6.2684]
[1768594096643,9.71731039,143.7,143.64,6.2684]
[1768594096950,9.71731039,143.7,143.61,7.52517065]
[1768594097540,7.98091499,143.7,143.61,7.52517065]
[1768594097750,9.71731039,143.7,143.63,6.2688]
[1768594098747,7.98091499,143.7,143.63,6.2688]
[1768594098951,9.71731039,143.69,143.63,6.2688]
[1768594099946,9.71731039,143.69,143.64,6.2683]
[1768594101148,9.71731039,143.69,143.65,6.268]
[1768594101853,97.4341,143.76,143.66,6.2676]
[1768594101854,8.84822108,143.71,143.66,6.2676]
[1768594102952,7.11182568,143.71,143.66,6.2676]
[1768594103147,8.84822108,143.71,143.66,6.2676]
[1768594104347,8.84822108,143.73,143.65,7.50638525]
[1768594105142,8.84822108,143.73,143.69,6.2662]
[1768594105349,8.84822108,143.73,143.65,105.00578525]
[1768594106052,8.84822108,143.73,143.65,7.50638525]
[1768594106253,8.84822108,143.71,143.65,7.50638525]
[1768594106661,7.11182568,143.73,143.65,7.50638525]
[1768594106855,8.84822108,143.73,143.65,7.50638525]
[1768594107855,15.11272108,143.73,143.65,7.50638525]
[1768594108159,7.11182568,143.72,143.65,7.50638525]
[1768594109365,8.84889201,143.72,143.65,7.50638525]
[1768594110562,7.11182568,143.72,143.65,7.50638525]
[1768594113860,13.37692568,143.72,143.65,7.50638525]
[1768594115258,13.17066088,143.74,143.66,8.80922964]
[1768594115655,6.2645,143.74,143.66,8.80922964]
[1768594115960,6.90616088,143.73,143.66,8.80922964]
[1768594116766,13.17066088,143.73,143.66,8.80922964]
[1768594117862,6.90616088,143.73,143.66,8.80922964]
[1768594118561,13.17066088,143.73,143.66,15.07662964]
[1768594118764,13.17066088,143.73,143.67,7.07216331]
[1768594122870,6.90616088,143.72,143.66,6.2674]
[1768594123067,6.265,143.72,143.65,7.07216331]
[1768594123271,6.90616088,143.71,143.65,7.07216331]
[1768594123872,13.17156088,143.71,143.65,7.07216331]
[1768594126273,6.90616088,143.71,143.65,7.07216331]
[1768594128674,6.90616088,143.69,143.63,7.07216331]
[1768594130874,6.90616088,143.69,143.63,13.34096331]
[1768594133271,6.90616088,143.69,143.64,6.2684]
[1768594137282,6.90616088,143.69,143.65,6.268]
[1768594138380,6.90616088,143.69,143.61,104.52571583]
[1768594139379,6.32443445,143.67,143.63,6.2687]
[1768594139582,6.32443445,143.67,143.61,6.99621583]
[1768594139782,6.32443445,143.67,143.59,6.99621583]
[1768594139982,8.06150078,143.66,143.59,6.99621583]
[1768594140786,8.06150078,143.66,143.59,13.26661583]
[1768594141587,8.06150078,143.66,143.6,6.99621583]
[1768594141786,6.29026073,143.65,143.58,7.48242499]
[1768594141975,6.29026073,143.65,143.58,8.20764082]
[1768594144991,6.24053927,143.63,143.58,6.99621583]
[1768594149583,6.24053927,143.63,143.57,16.87560704]
[1768594149989,7.9776056,143.63,143.57,16.87560704]
[1768594150393,7.9776056,143.63,143.57,23.14700704]
[1768594150892,6.14599975,143.62,143.57,16.87560704]
[1768594151096,1.73706633,143.61,143.57,16.87560704]
[1768594151890,7.88306608,143.62,143.57,16.87560704]
[1768594154100,6.14599975,143.62,143.57,16.87560704]
[1768594160401,6.00227506,143.6,143.57,16.87560704]
[1768594160597,6.00227506,143.6,143.52,6.99621583]
[1768594161904,6.00227506,143.6,143.54,6.2727]
[1768594163003,6.00227506,143.6,143.54,13.06010295]
[1768594164896,6.00227506,143.6,143.55,6.2722]
[1768594168200,6.00227506,143.6,143.56,6.2719]
[1768594169299,6.00227506,143.6,143.57,6.2715]
[1768594170808,537.617,143.72,143.52,97.5878]
[1768594170809,20.9,143.64,143.58,6.271]
[1768594171001,1.73706633,143.63,143.55,6.40539965]
[1768594171395,1.73926721,143.63,143.55,6.40539965]
[1768594171799,1.73926721,143.63,143.56,6.40539965]
[1768594173108,22.63926721,143.63,143.56,6.40539965]
[1768594174004,1.73926721,143.63,143.56,6.40539965]
[1768594174807,28.90816721,143.63,143.56,6.40539965]
[1768594175211,8.00816721,143.63,143.56,6.40539965]
[1768594175696,1.73926721,143.63,143.56,6.40539965]
[1768594176304,20.9,143.67,143.56,6.40539965]
[1768594176503,1.73926721,143.62,143.56,6.40539965]
[1768594179908,8.00876721,143.62,143.56,6.40539965]
[1768594180814,6.2698,143.61,143.56,6.40539965]
[1768594181111,1.73926721,143.6,143.54,6.40539965]
[1768594182216,6.2708,143.59,143.54,6.40539965]
[1768594184113,8.00946721,143.6,143.54,6.40539965]
[1768594184317,6.2702,143.6,143.54,6.40539965]
[1768594185315,6.2702,143.6,143.55,6.40539965]
[1768594186212,1.73926721,143.62,143.55,6.40539965]
[1768594186712,6.2693,143.62,143.56,6.40539965]
[1768594186912,1.73926721,143.65,143.56,6.40539965]
[1768594187915,22.63926721,143.65,143.56,6.40539965]
[1768594188106,1.73926721,143.63,143.56,6.40539965]
[1768594188913,22.63926721,143.65,143.56,6.40539965]
[1768594189816,6.2685,143.64,143.57,6.40539965]
[1768594190012,1.73926721,143.66,143.57,6.40539965]
[1768594190712,6.2681,143.65,143.58,6.40539965]
[1768594191923,1.73926721,143.64,143.58,6.40539965]
[1768594192124,1.73926721,143.64,143.56,6.92418005]
[1768594192319,20.9,143.65,143.56,6.92418005]
[1768594192515,6.2694,143.62,143.56,6.92418005]
[1768594192719,1.73926721,143.61,143.56,6.92418005]
[1768594195922,8.00906721,143.61,143.56,6.92418005]
[1768594196123,1.73926721,143.61,143.56,6.92418005]
[1768594196920,6.2703,143.6,143.56,6.92418005]
[1768594197120,6.2703,143.6,143.53,6.92418005]
[1768594197316,8.00996721,143.59,143.53,6.92418005]
[1768594197717,1.73926721,143.57,143.49,6.92418005]
[1768594197922,8.01066721,143.58,143.49,6.92418005]
[1768594198218,118.421,143.63,143.53,6.92418005]
[1768594198422,1.73926721,143.61,143.53,6.92418005]
[1768594199915,6.2704,143.6,143.53,6.92418005]
[1768594200121,1.73926721,143.62,143.53,6.92418005]
[1768594200823,6.2699,143.61,143.54,6.92418005]
[1768594201424,6.2694,143.62,143.55,6.92418005]
[1768594205327,6.2698,143.61,143.55,6.92418005]
[1768594207023,6.2695,143.62,143.55,6.92418005]
[1768594207227,8.00876721,143.62,143.55,6.92418005]
[1768594207523,8.00876721,143.62,143.52,8.66344726]
[1768594207728,1.73926721,143.6,143.52,6.92418005]
[1768594208320,6.2711,143.58,143.52,6.92418005]
[1768594211228,6.2715,143.57,143.52,6.92418005]
[1768594211425,6.2715,143.57,143.5,13.19848005]
[1768594211830,6.2715,143.57,143.51,6.92418005]
[1768594212328,1.73926721,143.56,143.49,6.92418005]
[1768594212534,1.73926721,143.55,143.49,6.92418005]
[1768594213030,8.01176721,143.55,143.49,6.92418005]
[1768594213427,6.2725,143.55,143.49,6.92418005]
[1768594213627,8.01176721,143.55,143.49,6.92418005]
[1768594213827,6.2729,143.54,143.49,6.92418005]
[1768594214225,1.73926721,143.55,143.49,8.005e-05]
[1768594215734,8.01266721,143.53,143.45,7.48896468]
[1768594216029,1.73926721,143.53,143.45,7.48896468]
[1768594216333,1.73926721,143.53,143.46,6.92418005]
[1768594216834,6.2737,143.52,143.46,6.92418005]
[1768594218133,6.2742,143.51,143.46,6.92418005]
[1768594218325,1.73926721,143.51,143.44,6.92418005]
[1768594219132,1.73926721,143.53,143.44,6.92418005]
[1768594219637,1.73926721,143.51,143.44,6.92418005]
[1768594220137,8.01356721,143.51,143.44,6.92418005]
[1768594220339,1.73926721,143.51,143.44,6.92418005]
[1768594220836,6.2736,143.53,143.46,6.92418005]
[1768594221037,8.01286721,143.53,143.46,6.92418005]
[1768594221236,1.73926721,143.56,143.48,6.72427774]
[1768594222840,1.73926721,143.56,143.49,6.72427774]
[1768594223241,6.30929882,143.57,143.49,6.72427774]
[1768594223434,1.73926721,143.56,143.49,6.72427774]
[1768594224242,6.2715,143.57,143.49,6.72427774]
[1768594226444,6.2715,143.57,143.5,6.72427774]
[1768594228149,1.82285192,143.59,143.51,6.72427774]
[1768594229150,0.08358471,143.59,143.51,6.72427774]
[1768594229747,6.2711,143.58,143.51,12.99837774]
[1768594229942,6.2711,143.58,143.52,6.90950258]
[1768594230547,0.08358471,143.59,143.52,6.90950258]
[1768594230751,0.25368176,143.61,143.52,8.64876979]
[1768594230945,0.25368176,143.61,143.53,6.90950258]
[1768594231952,1.73926721,143.62,143.53,6.90950258]
[1768594232251,8.00886721,143.62,143.56,6.90950258]
[1768594232451,6.2696,143.62,143.56,6.90950258]
[1768594232651,6.2698,143.61,143.56,6.90950258]
[1768594232852,7.20374994,143.61,143.49,97.6077]
[1768594233150,1.73926721,143.6,143.51,1.73926721]
[1768594233348,8.94367828,143.61,143.51,1.73992834]
[1768594233552,6.2707,143.59,143.52,6.2737]
[1768594234854,6.2707,143.59,143.53,6.90950258]
[1768594236151,13.47394994,143.61,143.53,6.90950258]
[1768594236453,7.20374994,143.61,143.54,6.90950258]
[1768594237051,6.2702,143.6,143.54,6.90950258]
[1768594240655,13.47354994,143.61,143.55,6.90950258]
[1768594241558,6.2703,143.6,143.55,6.90950258]
[1768594249559,7.46463476,143.65,143.55,6.90950258]
[1768594249865,9.2045631,143.64,143.55,6.90950258]
[1768594250565,1.73992834,143.62,143.55,6.90950258]
[1768594251775,6.2697,143.61,143.55,6.90950258]
[1768594254066,8.00922834,143.63,143.56,7.19696944]
[1768594254263,8.97646497,143.63,143.56,7.19696944]
[1768594255665,6.2698,143.61,143.56,7.19696944]
[1768594257170,6.2693,143.62,143.56,7.19696944]
[1768594260374,13.50583663,143.62,143.56,7.19696944]
[1768594260878,6.2698,143.61,143.56,7.19696944]
[1768594264978,7.23653663,143.62,143.56,7.19696944]
[1768594265680,13.50623663,143.62,143.56,7.19696944]
[1768594270883,6.2698,143.61,143.56,7.19696944]
[1768594273384,8.97646497,143.61,143.54,7.19696944]
[1768594274887,6.2706,143.59,143.54,7.19696944]
[1768594276090,13.50713663,143.59,143.52,7.19696944]
[1768594276882,15.24706497,143.59,143.52,7.19696944]
[1768594277188,15.24706497,143.59,143.53,7.19696944]
[1768594277393,15.24706497,143.59,143.51,7.19696944]
[1768594277394,13.50763663,143.58,143.51,7.19696944]
[1768594278992,7.23653663,143.58,143.52,7.19696944]
[1768594279886,7.23653663,143.58,143.52,13.47056944]
[1768594280389,7.23653663,143.58,143.53,7.19696944]
[1768594283592,8.07558784,143.62,143.54,7.99378285]
[1768594283985,9.81551618,143.64,143.56,7.99378285]
[1768594284188,9.81551618,143.64,143.57,14.26528285]
[1768594285498,1.73992834,143.62,143.57,14.26528285]
[1768594285803,9.81551618,143.62,143.55,7.99378285]
[1768594288000,8.07558784,143.67,143.57,7.99378285]
[1768594288203,9.81551618,143.64,143.57,7.99378285]
[1768594289503,9.81551618,143.64,143.59,6.2706]
[1768594289696,9.27692094,143.62,143.55,105.53833254]
[1768594289996,9.27692094,143.62,143.55,7.97033254]
[1768594290201,9.27692094,143.62,143.58,6.271]
[1768594291300,9.27692094,143.62,143.59,6.2706]
[1768594291997,9.27692094,143.62,143.56,14.24193254]
[1768594292498,9.27692094,143.64,143.57,7.97033254]
[1768594293194,9.27692094,143.64,143.57,14.24163254]
[1768594293506,9.27594051,143.64,143.57,14.24163254]
[1768594294006,9.27594051,143.64,143.58,7.97033254]
[1768594295106,7.5369926,143.67,143.59,7.97033254]
[1768594295304,9.27594051,143.64,143.57,7.97033254]
[1768594297009,7.5369926,143.64,143.57,7.97033254]
[1768594297201,9.27594051,143.62,143.55,7.97033254]
[1768594298809,9.27594051,143.62,143.55,14.24263254]
[1768594300704,7.5369926,143.62,143.56,7.97033254]
[1768594301107,7.5369926,143.62,143.56,14.24223254]
[1768594301308,6.2689,143.63,143.57,7.97033254]
[1768594301708,8.00784791,143.63,143.57,7.97033254]
[1768594301901,9.27594051,143.63,143.57,7.97033254]
[1768594302409,7.5369926,143.63,143.57,7.97033254]
[1768594302610,9.27594051,143.63,143.57,7.97033254]
[1768594303604,9.27594051,143.63,143.57,14.24183254]
[1768594309012,9.27594051,143.63,143.57,7.97033254]
[1768594313731,15.54504051,143.63,143.57,7.97033254]
[1768594314331,7.5369926,143.63,143.57,7.97033254]
[1768594316130,13.8058926,143.63,143.57,7.97033254]
[1768594319936,6.2694,143.62,143.57,7.97033254]
[1768594320232,7.5369926,143.63,143.57,7.97033254]
[1768594320438,8.22277264,143.65,143.58,8.25141154]
[1768594320726,8.22277264,143.67,143.58,9.99035945]
[1768594321634,6.2684,143.64,143.59,8.25141154]
[1768594323438,14.49117264,143.64,143.59,8.25141154]
[1768594324437,6.2684,143.64,143.59,8.25141154]
[1768594325938,9.96172055,143.66,143.59,8.25141154]
[1768594327940,9.96172055,143.66,143.59,14.52201154]
[1768594329444,9.96172055,143.66,143.6,8.25141154]
[1768594329943,9.96172055,143.66,143.6,14.52151154]
[1768594330144,8.22277264,143.66,143.6,8.25141154]
[1768594331848,8.22277264,143.66,143.61,6.2697]
[1768594336247,9.96172055,143.67,143.62,6.2693]
[1768594338851,8.22277264,143.67,143.63,6.2687]
[1768594345953,1.73894791,143.68,143.62,8.06872839]
[1768594346450,9.8262996,143.68,143.62,8.06872839]
[1768594347658,8.08735169,143.68,143.62,8.06872839]
[1768594347960,8.08735169,143.68,143.64,6.2682]
[1768594348159,8.08735169,143.7,143.62,8.06872839]
[1768594348366,8.08735169,143.7,143.6,105.60002839]
[1768594348367,9.8262996,143.66,143.6,105.60002839]
[1768594348564,9.96e-05,143.66,143.61,8.06872839]
[1768594349764,9.96e-05,143.66,143.63,6.2686]
[1768594350666,1.73894791,143.67,143.63,6.2686]
[1768594352262,3.31202541,143.67,143.63,6.2686]
[1768594352969,3.31202541,143.67,143.61,8.06872839]
[1768594353460,1.5730775,143.67,143.61,8.06872839]
[1768594354570,1.5730775,143.67,143.61,14.33842839]
[1768594354977,1.73820592,143.68,143.62,8.28020936]
[1768594355464,3.41431787,143.68,143.62,8.28020936]
[1768594355867,1.67611195,143.68,143.62,8.28020936]
[1768594356068,3.41431787,143.68,143.62,8.28020936]
[1768594359074,3.48850651,143.7,143.62,8.28020936]
[1768594360771,3.48850651,143.7,143.62,14.54930936]
[1768594360976,9.75440651,143.7,143.63,8.28020936]
[1768594361475,1.79854408,143.69,143.63,8.28020936]
[1768594364381,3.53675,143.69,143.63,8.28020936]
[1768594364879,9.80315,143.69,143.63,8.28020936]
[1768594366783,1.89666081,143.68,143.63,8.28020936]
[1768594367081,1.89666081,143.68,143.61,8.28020936]
[1768594367778,6.2672,143.67,143.61,8.28020936]
[1768594369589,6.2672,143.67,143.59,1.73820592]
[1768594369590,1.90436932,143.66,143.59,8.28020936]
[1768594369778,1.90436932,143.64,143.57,8.28020936]
[1768594370579,1.90436932,143.64,143.57,10.01841528]
[1768594370780,6.2683,143.65,143.58,8.28020936]
[1768594371389,1.90688847,143.66,143.6,8.25201467]
[1768594371889,1.73820592,143.67,143.6,8.25201467]
[1768594372090,6.2676,143.66,143.6,8.25201467]
[1768594374802,6.2671,143.68,143.61,8.25201467]
[1768594375301,6.2671,143.68,143.61,9.99022059]
[1768594375493,6.2671,143.68,143.62,8.25201467]
[1768594378103,6.2674,143.67,143.62,8.25201467]
[1768594378296,3.66752357,143.69,143.62,8.25201467]
[1768594378491,1.92931765,143.68,143.55,97.5675]
[1768594378695,10.11170412,143.67,143.58,1.73820592]
[1768594379100,8.3734982,143.67,143.58,1.73820592]
[1768594379501,6.2681,143.65,143.58,8.00910592]
[1768594380101,8.3734982,143.67,143.58,1.73820592]
[1768594380601,14.6409982,143.67,143.59,6.2705]
[1768594380796,8.3734982,143.67,143.6,8.25201467]
[1768594381597,6.2677,143.66,143.61,8.25201467]
[1768594382100,8.3734982,143.69,143.61,8.25201467]
[1768594382803,6.2672,143.67,143.61,8.25201467]
[1768594390404,10.11170412,143.69,143.61,14.52171467]
[1768594390405,14.6401982,143.69,143.61,14.52171467]
[1768594390605,8.3734982,143.69,143.62,8.25201467]
[1768594391604,6.2668,143.68,143.62,8.25201467]
[1768594393809,6.2662,143.7,143.63,8.25201467]
[1768594394201,22.63820592,143.73,143.63,9.99022059]
[1768594394405,8.3734982,143.73,143.65,9.99022059]
[1768594394609,1.73820592,143.75,143.65,9.99022059]
[1768594394610,10.11170412,143.75,143.65,9.99022059]
[1768594394903,14.6371982,143.75,143.68,6.2666]
[1768594395111,1.73820592,143.76,143.69,8.25201467]
[1768594395307,8.3734982,143.77,143.69,8.25201467]
[1768594395513,20.9,143.79,143.72,8.25201467]
[1768594395710,8.3734982,143.81,143.72,8.25201467]
[1768594396212,6.2616,143.8,143.73,8.25201467]
[1768594396412,8.3734982,143.81,143.73,8.25201467]
[1768594397414,14.6346982,143.81,143.73,8.25201467]
[1768594400920,6.2617,143.8,143.73,8.25201467]
[1768594404620,14.98920386,143.8,143.73,8.25201467]
[1768594405114,8.72750386,143.78,143.7,9.0457055]
[1768594405322,10.46570978,143.77,143.7,9.0457055]
[1768594406918,16.72860978,143.77,143.7,9.0457055]
[1768594407114,10.46570978,143.77,143.7,9.0457055]
[1768594408612,8.72750386,143.8,143.7,9.0457055]
[1768594408812,1.73820592,143.79,143.7,9.0457055]
[1768594409321,10.46570978,143.79,143.7,9.0457055]
[1768594409921,6.2624,143.78,143.71,8.74617939]
[1768594411521,6.2618,143.8,143.72,10.48438531]
[1768594411922,10.46144782,143.82,143.72,10.48438531]
[1768594412822,10.46144782,143.82,143.73,6.2644]
[1768594413016,8.7232419,143.82,143.74,10.48438531]
[1768594413218,8.7232419,143.84,143.74,10.48438531]
[1768594413422,10.46144782,143.83,143.74,10.48438531]
[1768594413729,8.7232419,143.83,143.74,10.48438531]
[1768594413921,10.46144782,143.83,143.74,8.74617939]
[1768594414923,6.2607,143.82,143.76,8.74617939]
[1768594415724,10.45756543,143.83,143.76,8.74617939]
[1768594416126,10.45756543,143.83,143.77,8.74617939]
[1768594417119,10.45756543,143.83,143.75,8.74617939]
[1768594417322,8.7232419,143.83,143.75,8.74617939]
[1768594418123,8.7232419,143.83,143.76,8.74617939]
[1768594419725,10.45756543,143.85,143.76,10.48050292]
[1768594419919,8.7232419,143.85,143.76,10.48050292]
[1768594420930,8.7232419,143.85,143.78,15.00847939]
[1768594421426,14.9825419,143.85,143.78,15.00847939]
[1768594423532,8.7232419,143.87,143.79,8.74617939]
[1768594424126,6.2593,143.85,143.79,8.74617939]
[1768594426028,10.45756543,143.86,143.79,8.74617939]
[1768594426935,16.71646543,143.86,143.79,15.00807939]
[1768594427437,10.45756543,143.87,143.8,8.74617939]
[1768594428937,8.7232419,143.86,143.8,8.74617939]
[1768594429729,6.2588,143.87,143.8,8.74617939]
[1768594429934,14.9820419,143.87,143.8,8.74617939]
[1768594430229,8.7232419,143.87,143.81,8.74617939]
[1768594430435,10.45756543,143.89,143.81,8.74617939]
[1768594430638,8.7232419,143.89,143.81,8.74617939]
[1768594431933,8.7232419,143.89,143.82,6.2604]
[1768594433040,8.7232419,143.89,143.83,6.2601]
[1768594434343,1.73432353,143.9,143.84,8.45941354]
[1768594434736,10.4051536,143.91,143.84,8.45941354]
[1768594435833,16.6618536,143.91,143.84,8.45941354]
[1768594437543,8.67083007,143.9,143.84,8.45941354]
[1768594437937,14.92803007,143.9,143.84,8.45941354]
[1768594439746,8.67083007,143.88,143.81,8.45941354]
[1768594439939,7.99192353,143.89,143.77,8.45941354]
[1768594439940,8.67083007,143.87,143.77,8.45941354]
[1768594440154,10.4051536,143.86,143.77,8.45941354]
[1768594440446,10.4051536,143.86,143.76,240.39651429]
[1768594440447,10.4051536,143.84,143.76,240.39651429]
[1768594441343,1.73432353,143.83,143.76,248.85592783]
[1768594441740,6.2606,143.82,143.76,248.85592783]
[1768594443544,6.2606,143.82,143.76,8.45941354]
[1768594444044,14.93143007,143.82,143.74,8.45941354]
[1768594444240,1.73432353,143.81,143.74,8.45941354]
[1768594444441,16.6657536,143.82,143.74,8.45941354]
[1768594445053,6.2606,143.82,143.76,8.45941354]
[1768594445848,1.73432353,143.83,143.76,8.45941354]
[1768594446246,10.4051536,143.84,143.77,8.45941354]
[1768594447749,6.2602,143.83,143.77,8.45941354]
[1768594448250,14.93103007,143.83,143.77,8.45941354]
[1768594448846,10.4051536,143.83,143.77,8.45941354]
[1768594449047,8.67083007,143.83,143.77,8.45941354]
[1768594449247,8.67083007,143.85,143.77,8.45941354]
[1768594449549,1.73432353,143.84,143.77,8.45941354]
[1768594449750,7.99412353,143.84,143.77,8.45941354]
[1768594449945,1.73432353,143.84,143.78,8.45941354]
[1768594450147,8.67083007,143.85,143.78,8.45941354]
[1768594451242,7.99342353,143.86,143.78,8.45941354]
[1768594451749,16.6642536,143.86,143.78,14.72161354]
[1768594451949,16.6642536,143.86,143.79,8.45941354]
[1768594452551,14.92993007,143.86,143.79,8.45941354]
[1768594452746,16.6642536,143.86,143.79,8.45941354]
[1768594453453,10.4051536,143.84,143.77,8.45941354]
[1768594454753,16.6649536,143.84,143.77,8.45941354]
[1768594456148,16.6649536,143.84,143.77,14.72211354]
[1768594459460,6.2598,143.84,143.78,8.45941354]
[1768594463258,9.24421663,143.81,143.73,9.18376816]
[1768594463457,10.97854016,143.8,143.73,9.18376816]
[1768594465059,17.24004016,143.8,143.73,9.18376816]
[1768594466557,9.24421663,143.79,143.73,9.18376816]
[1768594470460,9.24421663,143.79,143.73,15.44826816]
[1768594470765,6.2615,143.8,143.74,8.97199428]
[1768594473561,1.73432353,143.79,143.74,8.97199428]
[1768594475370,1.73516995,143.79,143.74,8.97199428]
[1768594475865,1.73516995,143.79,143.71,15.23699428]
[1768594475866,17.5365759,143.79,143.71,15.23699428]
[1768594476062,17.5365759,143.79,143.72,8.97199428]
[1768594477969,17.5365759,143.79,143.72,15.23689428]
[1768594480665,15.80140595,143.79,143.73,8.97199428]
[1768594480870,17.5365759,143.79,143.73,8.97199428]
[1768594481075,15.80140595,143.79,143.73,8.97199428]
[1768594481370,17.5365759,143.79,143.73,8.97199428]
[1768594481969,15.80140595,143.79,143.73,8.97199428]
[1768594482170,17.5365759,143.79,143.73,8.97199428]
[1768594482670,9.53950595,143.79,143.73,15.23639428]
[1768594486165,9.53950595,143.81,143.74,8.97199428]
[1768594486364,11.2746759,143.81,143.74,8.97199428]
[1768594487763,17.5356759,143.81,143.74,8.97199428]
[1768594487971,9.53950595,143.8,143.74,8.97199428]
[1768594490375,9.53950595,143.8,143.75,8.97199428]
[1768594500179,9.53950595,143.8,143.73,8.96484413]
[1768594500678,11.2746759,143.8,143.73,8.96484413]
[1768594501778,6.2619,143.79,143.73,15.22934413]
[1768594502174,6.2619,143.79,143.73,8.96484413]
[1768594502377,17.5361759,143.8,143.73,8.96484413]
[1768594502679,97.3804,143.84,143.73,8.96484413]
[1768594502877,11.27379058,143.82,143.73,8.96484413]
[1768594503879,6.2611,143.81,143.74,15.22894413]
[1768594504178,15.79972063,143.81,143.74,15.22894413]
[1768594505881,9.53862063,143.81,143.74,15.22894413]
[1768594506271,9.53862063,143.81,143.75,8.96484413]
[1768594509687,9.53862063,143.81,143.75,15.22844413]
[1768594509887,36.68902063,143.83,143.76,8.96484413]
[1768594510086,38.42419058,143.83,143.76,8.96484413]
[1768594510281,11.27379058,143.81,143.74,8.96484413]
[1768594510477,32.16379058,143.81,143.74,8.96484413]
[1768594510679,9.53862063,143.8,143.74,8.96484413]
[1768594511875,9.53862063,143.8,143.74,15.22854413]
[1768594514493,9.53862063,143.8,143.72,15.22944413]
[1768594514893,9.53862063,143.77,143.68,8.96484413]
[1768594515093,11.27379058,143.77,143.68,8.96484413]
[1768594515891,11.27379058,143.77,143.71,6.2654]
[1768594516392,11.27379058,143.77,143.71,15.23024413]
[1768594517093,1.73516995,143.77,143.72,8.96484413]
[1768594517293,32.16379058,143.79,143.72,8.96484413]
[1768594517894,38.42589058,143.79,143.72,8.96484413]
[1768594520191,6.2624,143.78,143.72,8.96484413]
[1768594522206,15.34173632,143.78,143.72,8.96484413]
[1768594526207,9.07933632,143.78,143.72,15.22964413]
[1768594529315,15.34173632,143.78,143.72,8.96484413]
[1768594529514,10.81450627,143.78,143.68,10.90001996]
[1768594530818,6.2632,143.76,143.7,15.43065001]
[1768594533116,15.95629272,143.78,143.71,9.16485001]
[1768594535619,15.95539272,143.8,143.72,9.16485001]
[1768594536513,6.2619,143.79,143.72,15.42955001]
[1768594536716,6.2619,143.79,143.73,9.16485001]
[1768594539224,15.95549272,143.79,143.73,9.16485001]
[1768594541020,1.7350357,143.8,143.69,9.16485001]
[1768594541021,9.69359272,143.77,143.69,9.16485001]
[1768594541926,15.95659272,143.77,143.7,6.2658]
[1768594542824,15.95659272,143.77,143.7,15.43065001]
[1768594543020,15.95659272,143.77,143.71,15.43025001]
[1768594543021,9.69359272,143.77,143.71,15.43025001]
[1768594544529,6.2623,143.78,143.72,9.16485001]
[1768594544828,9.69359272,143.79,143.72,15.42965001]
[1768594545828,15.95549272,143.79,143.72,15.42965001]
[1768594546429,6.2623,143.78,143.72,15.42965001]
[1768594547033,30.58359272,143.8,143.73,9.16485001]
[1768594547330,11.42862842,143.82,143.74,9.16485001]
[1768594547928,15.95479272,143.81,143.74,15.42885001]
[1768594549922,20.89,143.82,143.75,9.16485001]
[1768594550835,27.1506,143.82,143.75,9.16485001]
[1768594551329,36.84419272,143.82,143.75,9.16485001]
[1768594552333,6.261,143.81,143.75,9.16485001]
[1768594552720,15.37131294,143.81,143.75,9.16485001]
[1768594553121,17.10634864,143.81,143.75,9.16485001]
[1768594553435,15.37131294,143.81,143.75,9.16485001]
[1768594553734,17.10634864,143.81,143.75,9.16485001]
[1768594554135,9.11031294,143.8,143.74,6.264]
[1768594554628,10.84534864,143.79,143.71,9.28149067]
[1768594555231,10.84534864,143.78,143.71,9.28149067]
[1768594555827,10.84534864,143.78,143.69,15.54739067]
[1768594556134,17.10864864,143.76,143.69,9.28149067]
[1768594556335,9.11031294,143.75,143.69,9.28149067]
[1768594558438,7.9983357,143.76,143.69,9.28149067]
[1768594558735,6.2633,143.76,143.69,9.28149067]
[1768594559940,9.11031294,143.77,143.69,9.28149067]
[1768594560643,15.37341294,143.77,143.69,9.28149067]
[1768594563743,9.11031294,143.76,143.69,9.28149067]
[1768594566745,9.11031294,143.76,143.69,15.54759067]
[1768594567443,10.84534864,143.76,143.69,15.54759067]
[1768594570247,10.84534864,143.74,143.67,15.54829067]
[1768594570439,10.84534864,143.74,143.67,9.28149067]
[1768594571949,10.84534864,143.74,143.68,6.2667]
[1768594572642,10.84534864,143.74,143.67,9.28149067]
[1768594572850,10.84534864,143.72,143.65,9.28149067]
[1768594573841,10.84534864,143.72,143.65,15.54939067]
[1768594577443,10.84534864,143.7,143.63,9.28149067]
[1768594577645,17.11204864,143.68,143.61,9.28149067]
[1768594578153,9.11031294,143.67,143.61,9.28149067]
[1768594583457,10.75486646,143.66,143.61,9.28149067]
[1768594584148,9.01983076,143.66,143.61,9.28149067]
[1768594584558,9.01983076,143.68,143.62,9.70119445]
[1768594584859,27.1562,143.7,143.62,9.70119445]